[Event "Irish International Open 2019"]
[Site "Dublin"]
[Date "2019.04.20"]
[Round "6.14"]
[White "Mulligan, Scott"]
[Black "Fitzsimons, David"]
[Result "0-1"]
[ECO "A40"]
[WhiteElo "2006"]
[BlackElo "2299"]
[Annotator "ChessBase"]
[PlyCount "74"]
[EventDate "2019.02.28"]
[EventType "swiss"]
[EventCountry "IRL"]
[SourceTitle "playchess.com"]
[Source "ChessBase"]
[SourceQuality "1"]
[TimeControl "5400+30"]

1. e4 {[%emt 0:00:00]} g6 {[%emt 0:00:00]} 2. c4 {[%emt 0:00:38]} Bg7 {[%emt 0:00:00]} 3. d4 {[%emt 0:00:55]} Nc6 {[%emt 0:00:25]} 4. Nf3 {[%emt 0:06:29]} d6 {[%emt 0:00:30]} 5. d5 {[%emt 0:09:18]} Ne5 {[%emt 0:00:21]} 6. Nxe5 {[%emt 0:02:20]} Bxe5 {[%emt 0:00:07]} 7. Qc2 {[%emt 0:02:12]} c5 {[%emt 0:01:13]} 8. Bd2 {[%emt 0:01:27]} Bg7 {[%emt 0:01:35]} 9. Bc3 {[%emt 0:01:10]} Nf6 {[%emt 0:00:56]} 10. Bd3 {[%emt 0:02:59]} O-O {[%emt 0:00:32]} 11. O-O {[%emt 0:00:11]} e5 {[%emt 0:03:05]} 12. dxe6 {[%emt 0:07:21]} fxe6 {[%emt 0:02:24]} 13. e5 {[%emt 0:05:26]} Ng4 {[%emt 0:01:05]} 14. exd6 {[%emt 0:01:01]} Qxd6 {[%emt 0:00:19]} 15. g3 {[%emt 0:01:22]} Bh6 {[%emt 0:14:40]} 16. Bxg6 {[%emt 0:10:21]} e5 {[%emt 0:00:22]} 17. Bxh7+ {[%emt 0:00:04]} Kh8 {[%emt 0:00:07]} 18. Qg6 {[%emt 0:06:48]} Qe7 {[%emt 0:00:36]} 19. h3 {[%emt 0:02:07]} Qxh7 {[%emt 0:02:23]} 20. Qxh7+ {[%emt 0:02:01]} Kxh7 {[%emt 0:00:06]} 21. hxg4 {[%emt 0:00:08]} Bxg4 {[%emt 0:00:18]} 22. f4 {[%emt 0:09:04]} exf4 {[%emt 0:00:56]} 23. gxf4 {[%emt 0:00:07]} Bxf4 {[%emt 0:00:42]} 24. Nd2 {[%emt 0:02:47]} Be2 {[%emt 0:02:19]} 25. Rfe1 {[%emt 0:00:37]} Be3+ {[%emt 0:03:04]} 26. Kg2 {[%emt 0:07:23]} Rf2+ {[%emt 0:00:15]} 27. Kh3 {[%emt 0:00:19]} Bf4 {[%emt 0:00:45]} 28. Rh1 {[%emt 0:00:42]} Re8 {[%emt 0:04:49]} 29. Rag1 {[%emt 0:01:58]} Kh6 {[%emt 0:03:19]} 30. Nf1 {[%emt 0:03:38]} Re4 {[%emt 0:04:43]} 31. Ng3 {[%emt 0:02:54]} Re3 {[%emt 0:03:22]} 32. Rh2 {[%emt 0:05:12]} Rxh2+ {[%emt 0:00:19]} 33. Kxh2 {[%emt 0:00:01]} Bxc4 {[%emt 0:00:16]} 34. a3 {[%emt 0:00:50]} Kg5 {[%emt 0:01:09]} 35. Bd2 {[%emt 0:02:21]} Re2+ {[%emt 0:00:30]} 36. Rg2 {[%emt 0:00:20]} Rxg2+ {[%emt 0:00:05]} 37. Kxg2 {[%emt 0:00:03]} Bd5+ {[%emt 0:00:08]} 0-1

[Event "Irish International Open 2019"]
[Site "Dublin"]
[Date "2019.04.20"]
[Round "6.15"]
[White "Mihalik, Agoston"]
[Black "Schmitz, Andreas Arnold"]
[Result "1-0"]
[ECO "C06"]
[WhiteElo "2203"]
[BlackElo "2003"]
[Annotator "NA"]
[PlyCount "45"]
[EventDate "2019.02.28"]
[EventType "swiss"]
[EventCountry "IRL"]
[SourceTitle "playchess.com"]
[Source "ChessBase"]
[SourceQuality "1"]
[TimeControl "5400+30"]

1. e4 {[%emt 1:30:30]} e6 {[%emt 1:30:30]} 2. d4 {[%emt 0:00:30]} d5 {[%emt 0:00:30]} 3. Nd2 {[%emt 0:00:30]} Nf6 {[%emt 0:00:30]} 4. e5 {[%emt 0:00:30]} Nfd7 {[%emt 0:00:30]} 5. c3 {[%emt 0:00:30]} c5 {[%emt 0:00:30]} 6. Bd3 {[%emt 0:00:30]} Nc6 {[%emt 0:00:30]} 7. Ne2 {[%emt 0:00:30]} Qb6 {[%emt 0:00:30]} 8. Nf3 {[%emt 0:00:30]} f6 {[%emt 0:00:30]} 9. exf6 {[%emt 0:00:30]} Nxf6 {[%emt 0:00:30]} 10. O-O {[%emt 0:00:30]} cxd4 {[%emt 0:00:30]} 11. cxd4 {[%emt 0:00:30]} Bd6 {[%emt 0:00:30]} 12. Bf4 {[%emt 0:00:30]} Bxf4 {[%emt 0:00:30]} 13. Nxf4 {[%emt 0:00:30]} O-O {[%emt 0:00:30]} 14. Qd2 {[%emt 0:00:30]} Ne4 {[%emt 0:00:30]} 15. Qe3 {[%emt 0:00:30]} Nxd4 {[%emt 0:00:30]} 16. Nxd4 {[%emt 0:00:30]} e5 {[%emt 0:00:30]} 17. Nxd5 {[%emt 0:00:30]} exd4 {[%emt 0:00:30]} 18. Qxe4 {[%emt 0:00:30]} Qh6 {[%emt 0:00:30]} 19. Ne7+ {[%emt 0:00:30]} Kh8 {[%emt 0:00:30]} 20. Nxc8 {[%emt 0:00:30]} Raxc8 {[%emt 0:00:30]} 21. Qxb7 {[%emt 0:00:30]} Rc5 {[%emt 0:00:30]} 22. Qe7 {[%emt 0:00:30]} Rfc8 {[%emt 0:00:30]} 23. Rfe1 {[%emt 0:00:30]} 1-0

[Event "Irish International Open 2019"]
[Site "Dublin"]
[Date "2019.04.20"]
[Round "6.16"]
[White "Han, Yichen"]
[Black "Carroll, Peter"]
[Result "1-0"]
[ECO "A48"]
[WhiteElo "2190"]
[BlackElo "2006"]
[Annotator "NA"]
[PlyCount "43"]
[EventDate "2019.02.28"]
[EventType "swiss"]
[EventCountry "IRL"]
[SourceTitle "playchess.com"]
[Source "ChessBase"]
[SourceQuality "1"]
[TimeControl "5400+30"]

1. d4 {[%emt 0:00:00]} Nf6 {[%emt 0:00:00]} 2. Bf4 {[%emt 0:00:00]} c6 {[%emt 0:00:22]} 3. Nf3 {[%emt 0:00:59]} g6 {[%emt 0:00:29]} 4. e3 {[%emt 0:02:40]} Bg7 {[%emt 0:01:15]} 5. h3 {[%emt 0:00:19]} O-O {[%emt 0:00:08]} 6. Nbd2 {[%emt 0:00:39]} d6 {[%emt 0:00:26]} 7. Be2 {[%emt 0:00:33]} Nbd7 {[%emt 0:00:08]} 8. O-O {[%emt 0:00:46]} Re8 {[%emt 0:00:08]} 9. Bh2 {[%emt 0:00:42]} e5 {[%emt 0:05:12]} 10. dxe5 {[%emt 0:11:37]} Nxe5 {[%emt 0:02:32]} 11. Nxe5 {[%emt 0:03:23]} dxe5 {[%emt 0:01:08]} 12. Nc4 {[%emt 0:01:49]} Nd5 {[%emt 0:01:10]} 13. a4 {[%emt 0:10:56]} Qg5 {[%emt 0:05:57]} 14. Kh1 {[%emt 0:02:20]} f5 {[%emt 0:04:51]} 15. c3 {[%emt 0:04:12]} f4 {[%emt 0:03:15]} 16. e4 {[%emt 0:08:06]} Nb6 {[%emt 0:02:24]} 17. Nd6 {[%emt 0:02:20]} Rd8 {[%emt 0:01:24]} 18. Qb3+ {[%emt 0:00:48]} Kh8 {[%emt 0:01:14]} 19. Nf7+ {[%emt 0:00:07]} Kg8 {[%emt 0:00:00]} 20. Nh6+ {[%emt 0:00:12]} Kh8 {[%emt 0:00:01]} 21. Qg8+ {[%emt 0:00:20]} Rxg8 {[%emt 0:00:07]} 22. Nf7# {[%emt 0:00:17]} 1-0

[Event "Irish International Open 2019"]
[Site "Dublin"]
[Date "2019.04.20"]
[Round "6.18"]
[White "Hafstad, Leif"]
[Black "Buonanno, Raffaele"]
[Result "0-1"]
[ECO "B06"]
[WhiteElo "1857"]
[BlackElo "2091"]
[Annotator "NA"]
[PlyCount "82"]
[EventDate "2019.02.28"]
[EventType "swiss"]
[EventCountry "IRL"]
[SourceTitle "playchess.com"]
[Source "ChessBase"]
[SourceQuality "1"]
[TimeControl "5400+30"]

1. e4 {[%emt 0:00:00]} d6 {[%emt 0:02:55]} 2. d4 {[%emt 0:00:09]} g6 {[%emt 0:00:10]} 3. Nc3 {[%emt 0:00:44]} Bg7 {[%emt 0:00:07]} 4. Be3 {[%emt 0:00:25]} a6 {[%emt 0:00:17]} 5. Qd2 {[%emt 0:01:02]} b5 {[%emt 0:00:09]} 6. h4 {[%emt 0:02:29]} h5 {[%emt 0:00:20]} 7. Nf3 {[%emt 0:06:18]} Bb7 {[%emt 0:00:10]} 8. Ng5 {[%emt 0:01:55]} Nd7 {[%emt 0:00:51]} 9. f3 {[%emt 0:02:16]} Ngf6 {[%emt 0:00:17]} 10. Be2 {[%emt 0:06:23]} e5 {[%emt 0:01:02]} 11. d5 {[%emt 0:06:54]} O-O {[%emt 0:01:04]} 12. g4 {[%emt 0:02:27]} Qe7 {[%emt 0:02:22]} 13. O-O-O {[%emt 0:13:25]} Rac8 {[%emt 0:01:48]} 14. gxh5 {[%emt 0:05:56]} Nxh5 {[%emt 0:00:06]} 15. a4 {[%emt 0:02:00]} b4 {[%emt 0:00:05]} 16. Na2 {[%emt 0:01:39]} a5 {[%emt 0:00:05]} 17. Bb5 {[%emt 0:01:52]} Nc5 {[%emt 0:01:54]} 18. Kb1 {[%emt 0:04:55]} Rfd8 {[%emt 0:01:49]} 19. Nc1 {[%emt 0:02:32]} Qf6 {[%emt 0:08:15]} 20. Qf2 {[%emt 0:07:13]} c6 {[%emt 0:05:24]} 21. dxc6 {[%emt 0:03:49]} Bxc6 {[%emt 0:00:11]} 22. Bxc5 {[%emt 0:00:53]} dxc5 {[%emt 0:00:06]} 23. Rxd8+ {[%emt 0:01:31]} Qxd8 {[%emt 0:00:16]} 24. Bc4 {[%emt 0:00:56]} Be8 {[%emt 0:01:16]} 25. Nd3 {[%emt 0:02:14]} Bf6 {[%emt 0:03:07]} 26. f4 {[%emt 0:02:13]} exf4 {[%emt 0:00:31]} 27. Nxf4 {[%emt 0:00:42]} Nxf4 {[%emt 0:00:11]} 28. Rf1 {[%emt 0:06:27]} Qd4 {[%emt 0:03:34]} 29. Qxd4 {[%emt 0:02:13]} cxd4 {[%emt 0:00:05]} 30. Bxf7+ {[%emt 0:03:04]} Bxf7 {[%emt 0:00:08]} 31. Nxf7 {[%emt 0:00:25]} Kxf7 {[%emt 0:00:06]} 32. Rxf4 {[%emt 0:00:07]} Kg7 {[%emt 0:00:16]} 33. Rf2 {[%emt 0:02:59]} Bxh4 {[%emt 0:00:10]} 34. Rd2 {[%emt 0:00:38]} Bf6 {[%emt 0:00:09]} 35. Ka2 {[%emt 0:01:05]} Be5 {[%emt 0:00:22]} 36. Rf2 {[%emt 0:01:00]} Rf8 {[%emt 0:00:42]} 37. Re2 {[%emt 0:00:24]} Rf3 {[%emt 0:00:06]} 38. Rg2 {[%emt 0:00:53]} Re3 {[%emt 0:00:15]} 39. Rg4 {[%emt 0:00:19]} d3 {[%emt 0:00:29]} 40. cxd3 {[%emt 0:00:06]} Rxd3 {[%emt 0:00:04]} 41. Rg2 {[%emt 0:00:25]} b3+ {[%emt 0:00:06]} 0-1

[Event "Irish International Open 2019"]
[Site "Dublin"]
[Date "2019.04.20"]
[Round "6.20"]
[White "Fox, Anthony"]
[Black "Murphy, Sean"]
[Result "1-0"]
[ECO "B26"]
[WhiteElo "2031"]
[BlackElo "1976"]
[Annotator "NA"]
[PlyCount "83"]
[EventDate "2019.02.28"]
[EventType "swiss"]
[EventCountry "IRL"]
[SourceTitle "playchess.com"]
[Source "ChessBase"]
[SourceQuality "1"]
[TimeControl "5400+30"]

1. e4 {[%emt 0:00:00]} c5 {[%emt 0:00:00]} 2. Nc3 {[%emt 0:00:00]} d6 {[%emt 0:00:10]} 3. g3 {[%emt 0:02:22]} g6 {[%emt 0:01:08]} 4. Bg2 {[%emt 0:00:07]} Bg7 {[%emt 0:00:07]} 5. d3 {[%emt 0:00:38]} Nc6 {[%emt 0:00:39]} 6. Be3 {[%emt 0:00:22]} Nf6 {[%emt 0:00:22]} 7. h3 {[%emt 0:00:08]} a6 {[%emt 0:00:30]} 8. Nge2 {[%emt 0:00:56] B26: Closed Sicilian: 3 g3, lines with early Be3} Qc7 {[%emt 0:01:14]} (8... O-O 9. O-O Rb8 10. Qd2 b5 11. f4 Nd7 12. g4 {0-1 (46) Grischuk,A (2779)-Le,Q (2712) Khanty-Mansiysk 2013}) 9. O-O {[%emt 0:01:15]} Bd7 {[%emt 0:04:19]} 10. Qd2 {[%emt 0:01:30]} h6 $146 {[%emt 0:05:40]} ({Predecessor:} 10... O-O 11. g4 e6 12. f4 Rfe8 13. g5 Nh5 14. Bf3 Nd4 15. Bxh5 gxh5 {1-0 (75) Oh,B (1838)-Tamang,D (1529) Hong Kong 2016}) 11. a3 {[%emt 0:04:09]} e6 {[%emt 0:03:05]} 12. Rab1 {[%emt 0:00:28]} Rb8 {[%emt 1:18:46]} 13. b4 {[%emt 0:00:21]} cxb4 {[%emt 0:00:00]} 14. axb4 {[%emt 0:00:07]} b5 {[%emt 0:00:00]} 15. d4 {[%emt 0:02:09]} g5 {[%emt 0:00:00]} 16. f4 {[%emt 0:05:22]} g4 {[%emt 0:00:00]} 17. e5 {[%emt 0:08:21]} gxh3 {[%emt 0:00:00]} 18. Bxh3 {[%emt 0:06:12]} Nd5 {[%emt 0:00:00]} 19. Ne4 {[%emt 0:08:55]} dxe5 {[%emt 0:00:00]} 20. fxe5 {[%emt 0:00:43]} Bf8 {[%emt 0:00:00]} 21. c3 {[%emt 0:00:59]} Bc8 {[%emt 0:00:00]} 22. Nf4 {[%emt 0:00:37]} Be7 {[%emt 0:00:00]} 23. Bg2 {[%emt 0:05:30]} h5 {[%emt 0:00:00]} 24. Qf2 {[%emt 0:01:14]} Nxe3 {[%emt 0:00:00]} 25. Qxe3 {[%emt 0:00:37]} Bb7 {[%emt 0:00:00]} 26. Nd3 {[%emt 0:03:15]} Nd8 {[%emt 0:00:00]} 27. Ndc5 {[%emt 0:02:53]} Bxe4 {[%emt 0:00:00]} 28. Nxe4 {[%emt 0:00:41]} Rc8 {[%emt 0:00:00]} 29. Ra1 {[%emt 0:01:55]} h4 {[%emt 0:00:00]} 30. g4 {[%emt 0:02:32]} Qb6 {[%emt 0:00:00]} 31. Rf2 {[%emt 0:02:48]} Nc6 {[%emt 0:00:00]} 32. Qf3 {[%emt 0:03:05]} Rf8 {[%emt 0:00:00]} 33. g5 {[%emt 0:00:56]} Kd7 {[%emt 0:00:00]} 34. Qf4 {[%emt 0:01:44]} Kc7 {[%emt 0:00:00]} 35. Rfa2 {[%emt 0:04:03]} Nb8 {[%emt 0:00:00]} 36. Kh2 {[%emt 0:01:26]} Kd7 {[%emt 0:00:00]} 37. Bh3 {[%emt 0:00:48]} Qd8 {[%emt 0:00:00]} 38. Rd1 {[%emt 0:05:47]} Rg8 {[%emt 0:00:00]} 39. Rg2 {[%emt 0:04:41]} (39. d5 $142) 39... Rc4 {[%emt 0:00:00]} 40. Qxf7 {[%emt 0:00:35]} (40. Qf5 $4 {[%emt 0:20:24][%mdl 8192]} f6 41. Qxf6 {[%emt 0:00:00]} Qf8 {[%emt 0:02:23]} 42. Qf7 {[%emt 0:00:00]} Kc7 $4 {[%mdl 8192]} (42... Qxf7 $19 43. Rf2 Qg6)) (40. d5 $18 Qf8 41. dxe6+ Kc7 42. exf7) 40... Qf8 {[%emt 0:00:12]} 41. Bxe6+ {[%emt 0:00:30]} Kc7 {[%emt 0:00:30]} 42. Bxc4 {[%emt 0:00:30]} 1-0

[Event "Irish International Open 2019"]
[Site "Dublin"]
[Date "2019.04.20"]
[Round "6.21"]
[White "Murphy, Sean"]
[Black "Lundback, Anders"]
[Result "0-1"]
[ECO "D00"]
[WhiteElo "1976"]
[BlackElo "1806"]
[Annotator "NA RC"]
[PlyCount "88"]
[EventDate "2019.02.28"]
[EventType "swiss"]
[EventCountry "IRL"]
[SourceTitle "playchess.com"]
[Source "ChessBase"]
[SourceQuality "1"]
[TimeControl "5400+30"]

1. d4 {[%emt 1:30:30]} Nf6 {[%emt 1:30:30]} 2. Nc3 {[%emt 0:00:30]} d5 {[%emt 0:00:30]} 3. Bf4 {[%emt 0:00:30]} Bf5 {[%emt 0:00:30]} (3... e6 4. Nb5 Na6 5. e3 Be7 6. Nf3 O-O 7. Bd3 c6 8. Nc3 Nb4 9. h3 Nxd3+ 10. cxd3 b6 11. O-O Bb7 {0-1 (40) Rapport,R (2731)-Giri,A (2783) Wijk aan Zee 2019}) 4. f3 {[%emt 0:00:30]} e6 {[%emt 0:00:30]} 5. g4 {[%emt 0:00:30]} Bg6 {[%emt 0:00:30]} 6. h4 {[%emt 0:00:30] D00: 1 d4 d5: Unusual lines} h6 {[%emt 0:00:30]} 7. e3 {[%emt 0:00:30]} Bd6 {[%emt 0:00:30]} 8. Nh3 {[%emt 0:00:30]} a6 {[%emt 0:00:30]} 9. Bd3 {[%emt 0:00:30]} Bxd3 {[%emt 0:00:30]} 10. Qxd3 {[%emt 0:00:30]} Nc6 {[%emt 0:00:30]} 11. a3 $146 {[%emt 0:00:30]} ({Predecessor:} 11. O-O-O) 11... Qe7 {[%emt 0:00:30]} 12. Bxd6 {[%emt 0:00:30]} Qxd6 {[%emt 0:00:30]} 13. O-O-O {[%emt 0:00:30]} O-O-O {[%emt 0:00:30]} 14. Nf4 {[%emt 0:00:30]} g5 {[%emt 0:00:30]} 15. Nfe2 {[%emt 0:00:30]} Kb8 {[%emt 0:00:30]} 16. Rh3 {[%emt 0:00:30]} Rhg8 {[%emt 0:00:30]} 17. hxg5 {[%emt 0:00:30]} hxg5 {[%emt 0:00:30]} 18. Rdh1 {[%emt 0:00:30]} Ne7 {[%emt 0:00:30]} 19. Na4 {[%emt 0:00:30]} Ka7 {[%emt 0:00:30]} 20. Nc5 {[%emt 0:00:30]} Ng6 {[%emt 0:00:30]} 21. Ng3 {[%emt 0:00:30]} Rh8 {[%emt 0:00:30]} 22. Rxh8 {[%emt 0:00:30]} Rxh8 {[%emt 0:00:30]} 23. Rxh8 {[%emt 0:00:30]} Nxh8 {[%emt 0:00:30]} 24. Nh5 {[%emt 0:00:30]} Qe7 {[%emt 0:00:30]} 25. b4 {[%emt 0:00:30]} Nd7 {[%emt 0:00:30]} 26. Nb3 {[%emt 0:00:30]} Nb6 {[%emt 0:00:30]} 27. Na5 {[%emt 0:00:30]} Ng6 {[%emt 0:00:30]} 28. c4 {[%emt 0:00:30]} dxc4 {[%emt 0:00:30]} 29. Nxc4 {[%emt 0:00:30]} Nxc4 {[%emt 0:00:30]} 30. Qxc4 {[%emt 0:00:30]} b6 {[%emt 0:00:30]} 31. Kd2 {[%emt 0:00:30]} Qd6 {[%emt 0:00:30]} 32. Nf6 {[%emt 0:00:30]} Kb7 {[%emt 0:00:30]} 33. Ne4 {[%emt 0:00:30]} Qh2+ {[%emt 0:00:30]} 34. Qe2 {[%emt 0:00:30]} Qh4 {[%emt 0:00:30]} 35. a4 {[%emt 0:00:30]} f5 {[%emt 0:00:30]} 36. Nf2 {[%emt 0:00:30]} Qg3 {[%emt 0:00:30]} 37. Nd3 $11 {[%emt 0:00:30]} Qd6 {[%emt 0:00:30]} 38. Qd1 {[%emt 0:00:30]} Ne7 {[%emt 0:00:30]} 39. Qb3 {[%emt 0:00:30]} Nd5 {[%emt 0:00:30]} 40. b5 {[%emt 0:00:30]} a5 {[%emt 0:00:30]} 41. Ne5 {[%emt 0:00:30]} fxg4 {[%emt 0:00:30]} 42. fxg4 {[%emt 0:00:30]} Qf8 {[%emt 0:00:30]} 43. Ke2 {[%emt 0:00:30]} Qh8 {[%emt 0:00:30]} 44. Qd1 {[%emt 0:00:30]} Nc3+ {[%emt 0:00:30]} 0-1

[Event "Irish International Open 2019"]
[Site "Dublin"]
[Date "2019.04.20"]
[Round "6.22"]
[White "Schmitz, Manuela"]
[Black "Halvorsen, Benjamin"]
[Result "1/2-1/2"]
[ECO "A80"]
[WhiteElo "1968"]
[BlackElo "1767"]
[Annotator "NA RC"]
[PlyCount "122"]
[EventDate "2019.02.28"]
[EventType "swiss"]
[EventCountry "IRL"]
[SourceTitle "playchess.com"]
[Source "ChessBase"]
[SourceQuality "1"]
[TimeControl "5400+30"]

1. d4 {[%emt 0:00:00]} f5 {[%emt 0:00:00]} 2. Qd3 {[%emt 0:00:00]} d5 {[%emt 0:03:12]} 3. Nf3 {[%emt 0:00:44]} Nf6 {[%emt 0:02:05]} 4. Bf4 {[%emt 0:01:07]} e6 {[%emt 0:01:03]} 5. Nbd2 {[%emt 0:03:06]} Be7 {[%emt 0:00:54]} 6. h3 {[%emt 0:01:56]} b6 {[%emt 0:03:16]} 7. Ne5 {[%emt 0:02:47]} c5 {[%emt 0:10:57]} 8. c3 {[%emt 0:06:03]} O-O {[%emt 0:00:57]} 9. g4 {[%emt 0:02:47]} Ne4 {[%emt 0:01:23]} 10. e3 {[%emt 0:03:22]} Ba6 {[%emt 0:02:40]} 11. Qc2 {[%emt 0:00:31]} Bxf1 {[%emt 0:02:43]} 12. Rxf1 {[%emt 0:00:13]} Bh4 {[%emt 0:00:48]} 13. Nxe4 {[%emt 0:00:47]} fxe4 {[%emt 0:11:42]} 14. O-O-O {[%emt 0:01:33]} Nd7 {[%emt 0:02:59]} 15. Nxd7 {[%emt 0:04:24]} Qxd7 {[%emt 0:00:09]} 16. Qe2 {[%emt 0:00:08]} Qa4 {[%emt 0:12:17]} 17. Kb1 {[%emt 0:00:45]} Be7 {[%emt 0:05:25]} 18. f3 {[%emt 0:00:47]} exf3 {[%emt 0:02:09]} 19. Rxf3 {[%emt 0:02:12]} c4 {[%emt 0:04:10]} 20. Rdf1 {[%emt 0:00:52]} b5 {[%emt 0:00:56]} 21. Qc2 {[%emt 0:02:35]} Qxc2+ {[%emt 0:02:33]} 22. Kxc2 {[%emt 0:00:04]} a5 {[%emt 0:02:24]} 23. Bg3 {[%emt 0:01:23]} Rxf3 {[%emt 0:00:58]} 24. Rxf3 {[%emt 0:00:05]} Ra7 {[%emt 0:02:45]} 25. Be1 {[%emt 0:02:04]} b4 {[%emt 0:01:44]} 26. e4 {[%emt 0:01:02]} Rb7 {[%emt 0:01:12]} 27. exd5 {[%emt 0:02:38]} exd5 {[%emt 0:00:24]} 28. Rf5 {[%emt 0:00:13]} Rb5 {[%emt 0:00:35]} 29. b3 {[%emt 0:02:22]} cxb3+ {[%emt 0:03:09]} 30. axb3 {[%emt 0:00:19]} bxc3 {[%emt 0:00:22]} 31. Bxc3 {[%emt 0:00:12]} g6 {[%emt 0:01:40]} 32. Re5 {[%emt 0:00:15]} Kf7 {[%emt 0:00:25]} 33. Re1 {[%emt 0:01:29]} Bb4 {[%emt 0:04:35]} 34. Re5 {[%emt 0:05:24]} h6 {[%emt 0:01:59]} 35. h4 {[%emt 0:00:51]} Be7 {[%emt 0:01:13]} 36. h5 {[%emt 0:03:19]} Bg5 {[%emt 0:01:22]} 37. hxg6+ {[%emt 0:01:27]} Kxg6 {[%emt 0:00:02]} 38. Re6+ {[%emt 0:00:17]} Kg7 {[%emt 0:01:23]} 39. Ra6 {[%emt 0:00:55]} Bd8 {[%emt 0:00:12]} 40. Rc6 {[%emt 0:01:49]} ({White should try} 40. Ra8 $16 Bf6 41. Rxa5 Rxa5 42. Bxa5) 40... Rb6 {[%emt 0:04:51]} 41. Rc5 {[%emt 0:01:25]} Rd6 {[%emt 0:00:05]} 42. Bxa5 {[%emt 0:00:59]} Bf6 {[%emt 0:00:08]} (42... Kg6 $16 {is a better defense.}) 43. Kd3 {[%emt 0:01:22]} Kg6 {[%emt 0:00:08]} (43... Bd8 $142 44. Bd2 Kg6) 44. Bd2 {[%emt 0:04:14]} (44. Bc7 $18 Re6 45. Rxd5) 44... Bg5 {[%emt 0:00:07]} 45. Be3 $2 {[%emt 0:03:07]} (45. b4 $18) 45... Bxe3 {[%emt 0:05:12]} (45... Rb6 $11 46. Bxg5 Kxg5) 46. Kxe3 {[%emt 0:00:06]} Kg5 {[%emt 0:00:06]} 47. Kf3 {[%emt 0:00:13]} Kh4 {[%emt 0:00:16] [#]} 48. b4 $2 {[%emt 0:00:44]} (48. Kf4 $1 $18) 48... Rf6+ {[%emt 0:00:10]} 49. Kg2 {[%emt 0:00:19]} Rd6 {[%emt 0:00:08]} 50. b5 {[%emt 0:00:25]} Kxg4 {[%emt 0:01:55]} 51. Rc6 {[%emt 0:00:55]} Rd8 {[%emt 0:00:06]} 52. Rxh6 {[%emt 0:04:25]} Rb8 {[%emt 0:00:09]} 53. b6 {[%emt 0:00:11]} Kf4 {[%emt 0:00:03]} 54. Re6 {[%emt 0:01:08]} Kf5 {[%emt 0:01:24]} 55. Re5+ {[%emt 0:00:08]} Kf4 $11 {[%emt 0:00:05]} 56. Rxd5 {[%emt 0:04:57]} Rxb6 {[%emt 0:00:08]} 57. Rd8 {[%emt 0:01:26]} Rb2+ {[%emt 0:01:04]} 58. Kh3 {[%emt 0:00:25]} Rb3+ {[%emt 0:00:10]} 59. Kg2 {[%emt 0:00:20]} Rd3 {[%emt 0:00:59]} 60. Kf2 {[%emt 0:00:38]} Ke4 {[%emt 0:00:14]} 61. Ke2 {[%emt 0:00:13]} Rxd4 {[%emt 0:04:20]} 1/2-1/2

[Event "Irish International Open 2019"]
[Site "Dublin"]
[Date "2019.04.20"]
[Round "6.23"]
[White "Cafolla, Peter"]
[Black "Putar, Leon"]
[Result "0-1"]
[ECO "D80"]
[WhiteElo "1949"]
[BlackElo "1549"]
[Annotator "NA"]
[PlyCount "74"]
[EventDate "2019.02.28"]
[EventType "swiss"]
[EventCountry "IRL"]
[SourceTitle "playchess.com"]
[Source "ChessBase"]
[SourceQuality "1"]
[TimeControl "5400+30"]

1. d4 {[%emt 0:00:00]} Nf6 {[%emt 0:00:00]} 2. c4 {[%emt 0:00:00]} g6 {[%emt 0:00:28]} 3. Nc3 {[%emt 0:00:00]} d5 {[%emt 0:00:24]} 4. Bg5 {[%emt 0:00:16]} c6 {[%emt 0:01:53]} 5. Bxf6 {[%emt 0:00:52]} exf6 {[%emt 0:00:33]} 6. cxd5 {[%emt 0:00:08] D80: Grünfeld: Unusual White 4th moves and 4 Bg5} cxd5 {[%emt 0:00:23]} 7. e3 {[%emt 0:00:34]} (7. Qb3 Nc6 8. e3 Bb4 9. Nge2 O-O 10. a3 Qa5 11. Rc1 Bxc3+ 12. Nxc3 Rd8 {1-0 (53) Martinovic,S (2554)-Deris,A (1993) Zagreb 2018}) 7... Bg7 {[%emt 0:00:55]} 8. Qb3 {[%emt 0:00:16]} Be6 {[%emt 0:13:16]} 9. Qxb7 {[%emt 0:03:12]} Nd7 {[%emt 0:00:12]} 10. Bb5 {[%emt 0:00:27]} O-O {[%emt 0:09:17]} 11. Bxd7 $146 {[%emt 0:00:27]} ({Predecessor:} 11. Nge2 Nb6 12. Qa6 f5 13. O-O {1-0 (32) Steffen,K (2048)-Pleyer,F (1955) Bayern 2009}) 11... Rb8 {[%emt 0:00:19]} 12. Qc6 {[%emt 0:00:51]} Bxd7 {[%emt 0:00:20]} 13. Qxd5 {[%emt 0:00:30]} Rxb2 {[%emt 0:00:08]} 14. Nge2 {[%emt 0:00:41]} Qe7 {[%emt 0:01:20]} 15. O-O {[%emt 0:02:04]} Be6 {[%emt 0:00:15]} 16. Qa5 {[%emt 0:02:31]} Bc4 {[%emt 0:00:48]} 17. Rfe1 {[%emt 0:00:29]} Rc8 {[%emt 0:05:28]} 18. Rac1 {[%emt 0:02:32]} Bh6 {[%emt 0:01:17]} 19. Ng3 {[%emt 0:05:42]} f5 {[%emt 0:10:35]} 20. Rcd1 {[%emt 0:07:12]} Qd6 {[%emt 0:14:42]} 21. Qxa7 {[%emt 0:03:05]} f4 {[%emt 0:00:42]} 22. Nge4 {[%emt 0:00:35]} Qb4 {[%emt 0:00:41]} 23. a3 {[%emt 0:03:49]} Qb3 {[%emt 0:00:47]} 24. Qa4 {[%emt 0:03:26]} Qb8 {[%emt 0:01:20]} 25. Nc5 {[%emt 0:05:48]} fxe3 {[%emt 0:00:34]} 26. fxe3 {[%emt 0:00:26]} Bb3 {[%emt 0:00:28]} 27. Nxb3 {[%emt 0:00:37]} Rxc3 {[%emt 0:00:06]} 28. Nc5 {[%emt 0:02:36]} Rxe3 {[%emt 0:01:23]} 29. Qc6 {[%emt 0:05:46]} Bf4 {[%emt 0:05:57]} 30. Rxe3 {[%emt 0:05:36]} Bxe3+ {[%emt 0:00:10]} 31. Kh1 {[%emt 0:00:09]} Bxd4 {[%emt 0:00:29]} 32. Qd5 {[%emt 0:01:12]} Rd2 {[%emt 0:00:44]} 33. Rf1 {[%emt 0:00:48]} Qf4 {[%emt 0:03:42]} 34. Rb1 {[%emt 0:18:20]} Be5 {[%emt 0:01:54]} 35. Qa8+ {[%emt 0:00:25]} Kg7 $19 {[%emt 0:00:14]} 36. g3 {[%emt 0:02:23] [#]} Rxh2+ $1 {[%emt 0:00:20] Remove Defender} 37. Kxh2 {[%emt 0:00:13]} Qxg3+ {[%emt 0:00:03]} 0-1